bitfinex/quotes_ETHUSD_20250210
["timestamp","ask_amount","ask_price","bid_price","bid_amount"]
[1739191317815,7.55184,2648.4,2648.1,0.11047414]
[1739191318113,3.77589,2648.4,2648.1,0.11047414]
[1739191318528,3.77603,2648.3,2648.1,0.11047414]
[1739191319641,3.77589,2648.4,2648.1,0.11047414]
[1739191319821,3.77611,2648.3,2648.1,0.11047414]
[1739191320137,3.77589,2648.4,2648.1,0.11047414]
[1739191320334,4.54264,2648.2,2648.1,0.11047414]
[1739191320505,7.54264,2648.2,2648.1,0.11047414]
[1739191320702,3.77664,2647.9,2647.7,2.18888308]
[1739191320916,3.77644,2648.0,2647.7,2.18888308]
[1739191321534,3.77667,2647.9,2647.7,2.18888308]
[1739191322090,3.7763,2648.1,2647.7,2.18888308]
[1739191322296,7.55271,2648.1,2647.7,2.18888308]
[1739191322507,3.7763,2648.1,2647.7,2.18888308]
[1739191322701,3.77643,2648.0,2647.7,2.18888308]
[1739191322895,3.77664,2647.9,2647.7,2.18888308]
[1739191323294,3.77665,2647.9,2647.7,2.18888308]
[1739191323529,3.77665,2647.9,2647.8,0.1102169]
[1739191324021,3.77672,2647.8,2647.7,2.18888308]
[1739191324410,3.77695,2647.7,2647.4,2.18888308]
[1739191324591,4.54322,2647.8,2647.4,2.18888308]
[1739191324798,3.77686,2647.7,2647.4,2.18888308]
[1739191324994,4.54322,2647.8,2647.4,2.18888308]
[1739191326011,3.77694,2647.7,2647.4,2.18888308]
[1739191326212,4.54322,2647.8,2647.4,2.18888308]
[1739191326407,3.77694,2647.7,2647.4,2.18888308]
[1739191327156,4.54322,2647.8,2647.4,2.18888308]
[1739191327157,8.32004,2647.8,2647.4,2.18888308]
[1739191327520,8.32006,2647.8,2647.4,2.18888308]
[1739191327728,4.54324,2647.8,2647.4,2.18888308]
[1739191328102,8.32006,2647.8,2647.4,2.18888308]
[1739191328542,4.54324,2647.8,2647.4,2.18888308]
[1739191328902,3.77686,2647.7,2647.4,2.18888308]
[1739191330747,0.7665,2647.8,2647.4,2.18888308]
[1739191330977,3.77757,2647.2,2646.8,2.18888308]
[1739191331865,8.35008,2647.4,2646.8,5.96691308]
[1739191332244,4.57268,2647.4,2647.1,2.18888308]
[1739191332646,3.77711,2647.6,2647.1,5.96651308]
[1739191332941,3.0,2647.5,2647.4,2.18888308]
[1739191333258,7.57224,2647.7,2647.4,2.18888308]
[1739191333443,0.7953,2647.9,2647.4,2.18888308]
[1739191333639,0.7953,2647.9,2647.4,5.96612308]
[1739191333892,3.77667,2647.9,2647.4,2.18888308]
[1739191334040,3.77667,2647.9,2647.5,3.77714]
[1739191334340,3.77667,2647.9,2647.4,5.96615308]
[1739191334341,3.77659,2647.9,2647.4,5.96615308]
[1739191334535,3.0,2648.0,2647.7,2.18888308]
[1739191334931,4.57137,2648.3,2647.7,2.18888308]
[1739191335136,3.77632,2648.1,2647.7,2.18888308]
[1739191335663,7.55271,2648.1,2647.7,2.18888308]
[1739191335869,3.0,2648.1,2647.7,5.96565308]
[1739191336170,3.0,2648.1,2647.7,2.18888308]
[1739191336376,3.0,2648.1,2647.7,5.96571308]
[1739191336666,3.77582,2648.5,2648.0,2.18888308]
[1739191337046,3.77582,2648.5,2648.0,5.96525308]
[1739191337248,3.77582,2648.5,2648.1,0.11052243]
[1739191337645,3.0,2648.5,2648.1,0.11052243]
[1739191337876,6.77579,2648.5,2648.1,0.11052243]
[1739191338367,3.0,2648.5,2648.1,0.11052243]
[1739191338768,3.77594,2648.4,2648.1,0.11052243]
[1739191340242,6.77574,2648.5,2648.1,0.11052243]
[1739191340243,3.77604,2648.3,2648.1,0.11052243]
[1739191340439,4.59224,2648.3,2648.1,0.11052243]
[1739191340843,3.77614,2648.2,2648.1,0.11052243]
[1739191341044,4.59224,2648.3,2648.1,0.11052243]
[1739191342144,8.36837,2648.3,2648.1,0.11052243]
[1739191342346,3.77604,2648.3,2648.1,0.11052243]
[1739191343277,6.77581,2648.5,2648.1,0.11052243]
[1739191343639,10.55163,2648.5,2648.1,0.11052243]
[1739191343845,10.55164,2648.5,2648.1,0.11052243]
[1739191344157,3.77602,2648.3,2648.1,0.11052243]
[1739191345178,6.77581,2648.5,2648.1,0.11052243]
[1739191345378,10.55164,2648.5,2648.1,0.11052243]
[1739191345878,6.77581,2648.5,2648.1,0.11052243]
[1739191346085,3.77586,2648.4,2648.1,0.11052243]
[1739191346245,6.77581,2648.5,2648.1,0.11052243]
[1739191346451,0.8162,2648.6,2648.1,0.11052243]
[1739191346777,3.77602,2648.3,2648.1,0.11052243]
[1739191347085,3.77582,2648.5,2648.1,0.11052243]
[1739191347288,3.77598,2648.4,2648.1,0.11052243]
[1739191347688,3.77582,2648.5,2648.1,0.11052243]
[1739191347985,3.77588,2648.4,2648.1,0.11052243]
[1739191348367,3.77614,2648.3,2648.1,0.11052243]
[1739191348572,0.8162,2648.6,2648.1,0.11052243]
[1739191348774,3.0,2648.6,2648.2,3.77613]
[1739191348980,6.77565,2648.6,2648.3,2.18888308]
[1739191349169,3.77572,2648.5,2648.3,2.29848828]
[1739191350591,3.0,2648.6,2648.3,2.29848828]
[1739191350776,3.77574,2648.5,2648.3,2.29848828]
[1739191351491,3.0,2648.6,2648.3,2.29848828]
[1739191351690,3.7756,2648.6,2648.3,2.29848828]
[1739191352059,3.77548,2648.7,2648.3,2.29848828]
[1739191352258,3.77573,2648.5,2648.3,2.29848828]
[1739191352678,3.77557,2648.6,2648.3,2.29848828]
[1739191352885,3.77573,2648.5,2648.3,2.29848828]
[1739191353260,3.77546,2648.7,2648.3,2.29848828]
[1739191353461,3.77559,2648.6,2648.3,2.29848828]
[1739191353659,3.77543,2648.7,2648.3,2.29848828]
[1739191354066,3.77561,2648.6,2648.3,2.29848828]
[1739191355399,3.77527,2648.9,2648.3,2.29848828]
[1739191355566,0.8162,2649.0,2648.3,2.29848828]
[1739191355901,6.77544,2648.7,2648.3,6.07442828]
[1739191356104,3.0,2648.7,2648.3,2.29848828]
[1739191356271,3.77558,2648.6,2648.3,2.29848828]
[1739191356467,6.77545,2648.7,2648.3,2.29848828]
[1739191356669,0.8162,2648.6,2648.3,2.29848828]
[1739191356886,3.77586,2648.4,2648.3,2.29848828]
[1739191357506,3.77583,2648.5,2648.3,2.29848828]
[1739191358571,3.77558,2648.6,2648.3,2.29848828]
[1739191358771,6.77551,2648.7,2648.3,2.29848828]
[1739191358972,7.55128,2648.6,2648.3,2.29848828]
[1739191359275,7.55127,2648.6,2648.3,2.29848828]
[1739191359490,3.77579,2648.5,2648.3,2.29848828]
[1739191359875,3.77562,2648.6,2648.3,2.29848828]
[1739191361706,3.77573,2648.5,2648.3,2.29848828]
[1739191363109,3.77586,2648.4,2648.3,2.29848828]
[1739191363498,3.77586,2648.4,2648.3,0.1096052]
[1739191363801,3.77606,2648.3,2648.0,2.18888308]
[1739191364009,3.77602,2648.3,2648.0,2.18888308]
[1739191364176,3.77615,2648.2,2648.0,2.18888308]
[1739191365096,7.5524,2648.2,2648.0,2.18888308]
[1739191365509,7.55238,2648.2,2648.0,2.18888308]
[1739191366078,3.77615,2648.2,2648.0,2.18888308]
[1739191367008,3.77629,2648.1,2648.0,2.18888308]
[1739191367704,3.77657,2647.9,2647.7,2.18888308]
[1739191368035,3.77707,2647.6,2647.4,2.18888308]
[1739191368317,3.7768,2647.8,2647.4,2.18888308]
[1739191368503,3.7768,2647.8,2647.5,0.11019035]
[1739191369017,0.7571,2648.2,2647.7,2.18888308]
[1739191369309,3.77557,2648.6,2647.8,0.11001311]
[1739191369613,4.53334,2648.2,2647.8,0.11001311]
[1739191369982,3.77639,2648.1,2647.7,2.18888308]
[1739191370182,3.77643,2648.0,2647.9,0.10995404]
[1739191370383,3.77643,2648.0,2647.7,2.18888308]
[1739191370611,3.77643,2648.0,2647.9,0.10995404]
[1739191370809,3.77643,2648.0,2647.8,0.11001311]
[1739191370981,3.77657,2647.9,2647.7,2.18888308]
[1739191372181,3.77645,2648.0,2647.7,2.18888308]
[1739191372399,3.77657,2647.9,2647.7,2.18888308]
[1739191374529,3.77629,2648.1,2647.7,2.18888308]
[1739191374711,3.77645,2648.0,2647.7,2.18888308]
[1739191374906,8.30954,2648.2,2647.7,2.18888308]
[1739191375102,3.77636,2648.1,2647.7,2.18888308]
[1739191375504,3.77657,2647.9,2647.7,2.18888308]
[1739191375900,3.77672,2647.8,2647.7,2.18888308]
[1739191376216,3.77687,2647.7,2647.4,2.18888308]
[1739191376526,3.77701,2647.6,2647.4,2.18888308]
[1739191376705,3.77687,2647.7,2647.4,2.18888308]
[1739191377837,4.55162,2647.8,2647.4,2.18888308]
[1739191378243,3.77672,2647.8,2647.4,5.96616308]
[1739191378536,6.7763,2648.1,2647.7,2.18888308]
[1739191378736,8.32739,2648.2,2647.7,5.96562308]
[1739191378939,4.5511,2648.2,2647.7,5.96563308]
[1739191379142,3.77601,2648.3,2648.0,2.18888308]
[1739191379307,3.77616,2648.2,2648.0,2.18888308]
[1739191379853,3.77629,2648.1,2647.7,2.18888308]
[1739191380066,3.77629,2648.1,2647.7,5.96573308]
[1739191380274,0.7749,2648.4,2647.7,2.18888308]
[1739191380453,3.77672,2647.8,2647.7,2.18888308]
[1739191381760,3.77714,2647.5,2647.4,2.18888308]
[1739191382116,4.55194,2647.6,2647.4,2.18888308]
[1739191382341,3.77714,2647.5,2647.4,2.18888308]
[1739191382739,4.55194,2647.6,2647.4,2.18888308]
[1739191383120,8.32905,2647.6,2647.4,2.18888308]
[1739191383567,3.77704,2647.6,2647.5,0.11051748]
[1739191386035,3.64904,2647.6,2647.4,2.15620056]
[1739191386235,3.64904,2647.6,2647.5,0.10657043]
[1739191387697,4.42394,2647.6,2647.5,0.10657043]
[1739191387903,4.42394,2647.6,2647.1,2.18888308]
[1739191387904,3.77749,2647.3,2647.1,2.18888308]
[1739191388397,3.77724,2647.5,2647.1,2.18888308]
[1739191388771,0.7749,2647.6,2647.1,2.18888308]
[1739191388977,3.77723,2647.5,2647.1,2.18888308]
[1739191389472,3.77736,2647.4,2647.1,2.18888308]
[1739191389679,3.77752,2647.3,2647.1,2.18888308]
[1739191390178,3.77729,2647.4,2647.1,2.18888308]
[1739191390798,0.7749,2647.6,2647.1,2.18888308]
[1739191391002,3.77757,2647.2,2647.1,2.18888308]
[1739191393912,3.77757,2647.2,2647.1,2.2923905]
[1739191394607,3.77743,2647.3,2647.1,2.2923905]
[1739191396227,3.77757,2647.2,2647.1,2.2923905]
[1739191397496,3.77743,2647.3,2647.1,2.2923905]
[1739191397829,7.55494,2647.3,2647.1,2.2923905]
[1739191398192,3.77743,2647.3,2647.1,2.2923905]
[1739191398518,3.77729,2647.4,2647.1,2.2923905]
[1739191398826,3.77723,2647.5,2647.1,2.2923905]
[1739191399029,3.77686,2647.8,2647.4,2.18888308]
[1739191399204,6.77687,2647.7,2647.4,2.18888308]
[1739191399400,3.77687,2647.7,2647.5,0.10326567]
[1739191400299,4.5919,2647.9,2647.5,0.10326567]
[1739191400512,3.7766,2647.9,2647.5,0.10326567]
[1739191400728,7.5533,2647.9,2647.5,0.10326567]
[1739191400910,4.5917,2648.1,2647.5,3.88037567]
[1739191401227,6.77605,2648.3,2647.7,2.18888308]
[1739191401398,3.77615,2648.2,2647.7,6.003368]
[1739191401594,3.77602,2648.3,2647.8,3.87946945]
[1739191401799,4.59159,2648.1,2647.8,0.10280945]
[1739191401999,3.77652,2648.0,2647.7,2.18888308]
[1739191402212,0.8153,2648.1,2647.9,0.10275038]
[1739191402432,3.0,2648.1,2647.7,2.18888308]
[1739191402605,6.77639,2648.1,2647.7,2.18888308]
[1739191402807,6.77639,2648.1,2647.8,0.10266463]
[1739191403134,10.55278,2648.1,2647.9,0.10260556]
[1739191403339,6.77639,2648.1,2647.7,2.18888308]
[1739191403644,6.77625,2648.2,2648.0,0.10254649]
[1739191403809,6.77625,2648.2,2647.7,5.96567308]
[1739191404007,3.7761,2648.3,2648.1,0.10248743]
[1739191404351,3.7761,2648.3,2647.7,5.96567308]
[1739191404352,3.776,2648.3,2648.2,0.10242837]
[1739191404513,3.77624,2648.2,2647.7,5.96572308]
[1739191404860,3.77644,2648.0,2647.8,0.10266463]
[1739191405263,3.77644,2648.0,2647.7,2.18888308]
[1739191405467,3.77644,2648.0,2647.9,0.10257874]
[1739191405612,3.77644,2648.0,2647.8,0.10263782]
[1739191405808,3.77644,2648.0,2647.7,2.18888308]
[1739191406018,3.77672,2647.8,2647.4,2.18888308]
[1739191406256,3.7769,2647.7,2647.4,2.18888308]
[1739191406413,3.77701,2647.6,2647.4,2.18888308]
[1739191410056,3.77692,2647.7,2647.4,2.18888308]
[1739191410228,0.8153,2647.9,2647.4,5.96615308]
[1739191410426,4.59191,2647.9,2647.4,5.96615308]
[1739191411053,0.8153,2647.9,2647.4,5.96615308]
[1739191411221,3.77625,2648.2,2647.7,5.96562308]
[1739191411644,3.77625,2648.2,2647.7,2.18888308]
[1739191411859,6.77629,2648.1,2647.7,2.18888308]
[1739191412585,3.77629,2648.1,2647.7,2.18888308]
[1739191412780,3.77625,2648.2,2647.7,5.96573308]
[1739191413079,3.77633,2648.1,2647.7,2.18888308]
[1739191413428,3.77657,2648.0,2647.7,2.18888308]
[1739191413631,7.55309,2648.0,2647.8,0.102611]
[1739191413840,7.55303,2648.0,2647.8,0.102611]
[1739191414035,3.77651,2648.0,2647.7,2.18888308]
[1739191414242,3.77651,2648.0,2647.9,0.10255193]
[1739191414465,3.77651,2648.0,2647.8,0.102611]
[1739191414660,3.77657,2647.9,2647.7,2.18888308]
[1739191414864,3.77651,2648.0,2647.7,2.18888308]
[1739191415560,3.77658,2647.9,2647.7,2.18888308]
[1739191416059,3.77651,2648.0,2647.7,2.18888308]
[1739191416558,3.77662,2647.9,2647.7,2.18888308]
[1739191418253,3.77651,2648.0,2647.7,2.18888308]
[1739191418654,3.77672,2647.8,2647.7,2.18888308]
[1739191421063,4.59189,2647.9,2647.7,2.18888308]
[1739191421564,0.8153,2647.9,2647.7,2.18888308]
[1739191421771,3.77672,2647.8,2647.7,2.18888308]
[1739191425640,3.77643,2648.0,2647.7,2.18888308]
[1739191426471,3.77658,2647.9,2647.7,2.18888308]
[1739191426842,7.55324,2647.9,2647.7,2.18888308]
[1739191427058,3.77658,2647.9,2647.7,2.18888308]
[1739191427254,4.54376,2648.1,2647.7,2.18888308]
[1739191427471,3.7765,2648.0,2647.7,2.18888308]
[1739191427840,3.77636,2648.1,2647.7,2.18888308]
[1739191428072,3.77601,2648.3,2648.0,2.18888308]
[1739191428274,3.0,2648.2,2648.0,2.18888308]
[1739191428473,6.77623,2648.2,2648.0,2.18888308]
[1739191428654,6.77623,2648.2,2648.1,0.10248209]
[1739191430754,3.77643,2648.0,2647.7,2.18888308]
[1739191431343,3.0,2648.2,2647.7,5.96573308]
[1739191431641,3.77629,2648.1,2648.0,2.18888308]
[1739191432039,3.77629,2648.1,2647.7,2.18888308]
[1739191432270,4.53733848,2648.7,2647.7,2.18888308]
[1739191432271,3.77661,2647.9,2647.7,2.18888308]
[1739191432442,3.77672,2647.8,2647.7,2.18888308]
[1739191435582,3.77692,2647.7,2647.4,2.18888308]
[1739191437392,3.77673,2647.8,2647.4,2.18888308]
[1739191437763,3.77691,2647.7,2647.4,2.18888308]
[1739191438978,3.77668,2647.9,2647.4,2.18888308]
[1739191439183,3.77687,2647.7,2647.4,2.18888308]
[1739191440387,0.7674,2648.0,2647.4,2.18888308]
[1739191440571,0.8185,2647.4,2646.8,2.18888308]
[1739191440771,3.77772,2647.1,2646.8,2.18888308]
[1739191441160,4.59587,2647.4,2646.8,2.18888308]
[1739191441366,0.8185,2647.4,2647.1,2.18888308]
[1739191441683,0.8185,2647.7,2647.1,2.18888308]
[1739191441852,3.77712,2647.6,2647.1,2.18888308]
[1739191442061,3.77719,2647.5,2647.1,2.18888308]
[1739191442869,3.77732,2647.4,2647.1,2.18888308]
[1739191443667,3.77732,2647.4,2647.2,0.0959825]
[1739191445701,7.59593,2647.3,2647.2,0.0959825]
[1739191446059,3.77797,2647.0,2646.8,2.18888308]
[1739191446400,3.77797,2647.0,2646.5,0.76055693]
[1739191446401,3.77835,2646.7,2646.5,2.18888308]
[1739191446771,7.55672,2646.7,2646.5,2.18888308]
[1739191446978,3.77835,2646.7,2646.5,2.18888308]
[1739191448997,3.77843,2646.6,2646.5,2.18888308]
[1739191450162,3.77874,2646.4,2646.2,2.18888308]
[1739191450366,4.5965,2646.9,2646.2,2.18888308]
[1739191450367,3.77886,2646.3,2646.2,2.18888308]
[1739191450888,3.77859,2646.5,2646.2,2.18888308]
[1739191451096,3.77871,2646.4,2646.2,2.18888308]
[1739191453298,7.55727,2646.5,2646.2,2.18888308]
[1739191453606,3.77859,2646.5,2646.2,2.18888308]
[1739191453834,3.7783,2646.7,2646.2,2.18888308]
[1739191453977,6.7783,2646.7,2646.6,2.18888308]
[1739191458478,6.7783,2646.7,2646.6,2.28575546]
[1739191461502,6.7783,2646.7,2646.6,0.09687238]
[1739191461818,3.8018,2646.7,2646.3,2.18888308]
[1739191462010,3.77871,2646.4,2646.3,2.18888308]
[1739191463920,3.77857,2646.5,2646.3,2.18888308]
[1739191464228,7.58016,2646.7,2646.3,2.18888308]
[1739191464519,3.97695,2647.7,2646.6,2.18888308]
[1739191464520,4.5798,2646.9,2646.6,2.18888308]
[1739191464700,4.57963,2647.1,2646.6,5.96724308]
[1739191464905,8.35746,2647.1,2646.9,2.18888308]
[1739191465124,4.57963,2647.1,2646.9,2.18888308]
[1739191465419,3.77786,2647.0,2646.9,2.18888308]
[1739191467019,3.77783,2647.1,2646.9,2.18888308]
[1739191467425,3.77768,2647.2,2647.0,0.09695708]
[1739191467723,3.77771,2647.1,2647.0,0.09695708]
[1739191469420,3.77737,2647.4,2647.0,0.09695708]
[1739191469620,3.77737,2647.4,2647.2,2.18888308]
[1739191469927,7.55479,2647.4,2647.2,2.18888308]
[1739191470124,3.77737,2647.4,2647.3,0.09673695]
[1739191470329,0.7944,2647.3,2647.2,2.18888308]
[1739191470494,4.57183,2647.3,2647.2,2.18888308]
[1739191470833,0.7944,2647.3,2646.9,2.18888308]
[1739191470988,3.77786,2647.0,2646.9,2.18888308]
[1739191471189,3.77828,2646.7,2646.6,2.18888308]
[1739191471422,3.77814,2646.8,2646.6,2.18888308]
[1739191471824,3.77797,2647.0,2646.6,2.18888308]
[1739191472022,3.77807,2646.9,2646.6,2.18888308]
[1739191472530,3.77797,2647.0,2646.6,2.18888308]
[1739191472729,7.55591,2647.0,2646.6,2.18888308]
[1739191472929,3.77795,2647.0,2646.6,2.18888308]
[1739191473497,7.55589,2647.0,2646.7,0.09372072]
[1739191475038,3.77794,2647.0,2646.7,0.09372072]
[1739191475421,7.55589,2647.0,2646.7,0.09372072]
[1739191475833,3.77794,2647.0,2646.7,0.09372072]
[1739191476332,7.5559,2647.0,2646.7,0.09372072]
[1739191476700,3.77805,2646.9,2646.7,0.09372072]
[1739191478126,3.77794,2647.0,2646.7,0.09372072]
[1739191481328,4.5722,2647.1,2646.7,0.09372072]
[1739191481534,3.77786,2647.0,2646.7,0.09372072]
[1739191483258,3.77772,2647.1,2646.7,0.09372072]
[1739191484210,3.77795,2647.0,2646.7,0.09372072]
[1739191485761,3.77795,2647.0,2646.9,1.09421039]
[1739191486350,3.77795,2647.0,2646.9,1.18768437]
[1739191486961,4.55195,2647.0,2646.9,1.18768437]
[1739191487319,4.55195,2647.0,2646.9,1.09421039]
[1739191487519,4.55195,2647.0,2646.9,1.18768437]
[1739191488556,4.55195,2647.0,2646.9,1.09421039]
[1739191488850,4.55195,2647.0,2646.9,1.18768437]
[1739191489065,4.55195,2647.0,2646.9,1.09421039]
[1739191489219,4.55195,2647.0,2646.9,1.18768437]
[1739191490728,3.77774,2647.1,2646.9,1.18768437]
[1739191490935,3.77786,2647.0,2646.9,1.18768437]
[1739191492231,3.77774,2647.1,2646.9,1.18768437]
[1739191495727,6.77759,2647.2,2646.9,1.18768437]
[1739191495945,6.77759,2647.2,2647.1,1.09421039]
[1739191496327,6.77759,2647.2,2647.1,1.18774815]
[1739191501188,7.53559,2647.2,2647.1,0.09353776]
[1739191501680,3.77786,2647.0,2646.9,1.09421039]
[1739191501845,3.77786,2647.0,2646.9,1.18786637]
[1739191503729,3.77774,2647.1,2646.9,1.18786637]
[1739191503928,3.0,2647.2,2646.9,2.28207676]
[1739191504132,3.0,2647.2,2647.1,1.09421039]
[1739191504375,6.77757,2647.2,2647.1,1.09421039]
[1739191504680,6.77757,2647.2,2647.1,1.18774815]
[1739191509490,3.0,2647.2,2647.1,1.18774815]
[1739191509849,6.77757,2647.2,2647.1,1.18774815]
[1739191510681,3.0,2647.2,2647.1,1.18774815]
[1739191510836,3.77723,2647.5,2647.1,1.18774815]
[1739191511041,3.77723,2647.5,2647.4,1.09421039]
[1739191511291,6.77723,2647.5,2647.4,1.18724433]
[1739191513376,6.77723,2647.5,2647.4,1.09421039]
[1739191513684,6.77723,2647.5,2647.4,1.18724433]
[1739191515539,6.77723,2647.5,2647.4,1.09421039]
[1739191515738,6.77723,2647.5,2647.4,1.18673967]
[1739191516184,3.77754,2647.3,2647.2,1.09421039]
[1739191516478,3.7773,2647.4,2647.2,1.09421039]
[1739191516638,7.55468,2647.4,2647.2,1.09421039]
[1739191516838,3.7773,2647.4,2647.2,1.09421039]
[1739191517443,3.77728,2647.5,2647.2,1.09421039]
[1739191517643,3.77728,2647.5,2647.4,1.09421039]
[1739191517976,3.77688,2647.7,2647.4,1.09421039]
[1739191518154,3.77688,2647.7,2647.6,1.09421039]
[1739191518567,3.77688,2647.7,2647.6,1.1866215]
[1739191520301,7.56654,2647.8,2647.6,1.1866215]
[1739191520477,3.77686,2647.7,2647.6,1.1866215]
[1739191521701,7.56654,2647.8,2647.6,1.1866215]
[1739191521878,3.77664,2647.9,2647.6,1.1866215]
[1739191522064,3.77657,2647.9,2647.8,1.09421039]
[1739191522261,6.77657,2647.9,2647.8,1.09421039]
[1739191522471,3.77645,2648.0,2647.8,1.09421039]
[1739191522472,3.77645,2648.0,2647.8,2.28051572]
[1739191522778,3.77645,2648.0,2647.8,1.18630533]
[1739191522976,0.7898,2648.3,2647.8,2.28051572]
[1739191523179,3.77629,2648.1,2647.8,0.09209494]
[1739191523504,3.77646,2648.0,2647.6,3.777]
[1739191523698,3.77646,2648.0,2647.9,2.18665959]
[1739191523900,3.77646,2648.0,2647.9,2.27857774]
[1739191524912,3.77628,2648.2,2647.9,2.27857774]
[1739191525098,3.0,2648.2,2647.9,2.27857774]
[1739191525280,0.76157988,2648.5,2647.9,2.27857774]
[1739191525281,4.55079,2648.5,2647.9,6.05505774]
[1739191525600,3.77594,2648.4,2648.2,2.18665959]
[1739191525968,3.77594,2648.4,2648.3,0.09168191]
[1739191526504,3.0,2648.7,2647.6,2.18665959]
[1739191526505,3.77674,2647.8,2647.6,2.18665959]
[1739191527986,3.77649,2648.0,2647.6,2.18665959]
[1739191528194,7.55306,2648.0,2647.6,2.18665959]
[1739191528513,3.7766,2647.9,2647.6,2.18665959]
[1739191528880,0.775,2648.2,2647.6,2.18665959]
[1739191529080,3.77644,2648.0,2647.6,2.18665959]
[1739191529799,3.77644,2648.0,2647.6,5.96364959]
[1739191530022,3.7763,2648.1,2647.6,5.96364959]
[1739191530609,3.77651,2648.0,2647.6,2.18665959]
[1739191533070,3.77672,2647.8,2647.6,2.18665959]
[1739191533281,3.77672,2647.8,2647.3,2.18665959]
[1739191533282,3.77708,2647.6,2647.3,2.18665959]
[1739191533477,3.77708,2647.6,2647.4,0.12671394]
[1739191533893,3.7768,2647.8,2647.4,0.12671394]
[1739191534082,7.55154,2648.0,2647.6,2.18665959]
[1739191534281,7.55152,2648.0,2647.6,2.18665959]
[1739191534591,11.32804,2648.0,2647.7,0.12659156]
[1739191534797,7.55152,2648.0,2647.7,0.12659156]
[1739191535332,6.77652,2648.0,2647.7,0.12659156]
[1739191535498,10.55303,2648.0,2647.7,0.12659156]
[1739191535692,6.77651,2648.0,2647.7,0.12659156]
[1739191536028,10.55303,2648.0,2647.7,0.12659156]
[1739191536224,6.77651,2648.0,2647.7,0.12659156]
[1739191536413,3.77657,2647.9,2647.7,0.12659156]
[1739191537476,7.55328,2647.9,2647.7,0.12659156]
[1739191538062,3.77672,2647.8,2647.7,0.12659156]
[1739191538429,3.0,2648.0,2647.7,3.90343156]
[1739191538626,3.0,2648.0,2647.9,2.18665959]
[1739191539044,3.0,2648.0,2647.9,2.31313035]
[1739191539581,3.77587,2648.4,2647.9,2.31313035]
[1739191539745,3.77587,2648.4,2648.2,2.18665959]
[1739191539950,3.77581,2648.5,2648.2,2.18665959]
[1739191540263,3.77587,2648.4,2648.3,0.12632015]
[1739191540668,3.776,2648.3,2648.2,2.18665959]
[1739191541066,4.5893,2648.3,2648.2,2.18665959]
[1739191541572,3.77637,2648.1,2647.9,2.18665959]
[1739191541934,3.77643,2648.0,2647.9,2.18665959]
[1739191542336,3.77643,2648.0,2647.6,2.18665959]
[1739191542537,3.77662,2647.9,2647.6,2.18665959]
[1739191542943,3.77657,2647.9,2647.6,2.18665959]
[1739191544472,4.59002,2647.8,2647.6,2.18665959]
[1739191544680,3.77686,2647.7,2647.3,3.78995028]
[1739191544843,3.77686,2647.7,2647.3,2.18665959]
[1739191545044,3.77702,2647.6,2647.3,2.18665959]
[1739191545244,7.55414,2647.6,2647.3,2.18665959]
[1739191545588,3.77702,2647.6,2647.3,2.18665959]
[1739191548642,3.77702,2647.6,2647.4,0.12682092]
[1739191550439,3.77714,2647.5,2647.4,0.12682092]
[1739191550676,3.77702,2647.6,2647.4,0.12682092]
[1739191551039,0.8133,2647.8,2647.4,0.12682092]
[1739191551341,3.77714,2647.5,2647.3,2.18665959]
[1739191551547,7.55436,2647.5,2647.4,0.12705632]
[1739191552049,3.77714,2647.5,2647.4,0.12705632]
[1739191553663,3.7768,2647.8,2647.4,0.12705632]
[1739191553865,3.7768,2647.8,2647.7,2.18665959]
[1739191554289,6.7768,2647.8,2647.7,2.31357749]
[1739191554444,3.7768,2647.8,2647.7,2.31357749]
[1739191554645,4.58973,2648.0,2647.7,2.31357749]
[1739191554868,3.77643,2648.0,2647.7,2.31357749]
[1739191555271,3.77629,2648.1,2647.7,2.31357749]
[1739191555785,3.77648,2648.0,2647.7,2.31357749]
[1739191556880,3.0,2648.4,2647.8,3.77664]
[1739191556881,3.77596,2648.4,2647.8,3.77664]
[1739191557058,3.77596,2648.4,2648.1,2.18665959]
[1739191557259,3.0,2648.3,2648.2,0.12644474]
[1739191557703,3.77596,2648.4,2648.2,0.12644474]
[1739191557874,3.77572,2648.5,2648.2,0.12644474]
[1739191558071,3.77589,2648.4,2648.2,0.12644474]
[1739191558294,3.776,2648.3,2648.1,2.18665959]
[1739191558489,3.77652,2648.0,2647.8,2.18665959]
[1739191558663,3.77657,2647.9,2647.8,2.18665959]
[1739191559011,3.77678,2647.8,2647.5,2.18665959]
[1739191560229,0.55,2648.1,2647.5,2.18665959]
[1739191560372,0.7588,2647.6,2646.9,2.18665959]
[1739191560577,3.77758,2647.2,2646.9,2.18665959]
[1739191561400,3.77746,2647.3,2646.9,2.18665959]
[1739191561763,3.77732,2647.4,2646.9,2.18665959]
[1739191561966,3.77744,2647.3,2646.9,2.18665959]
[1739191563104,3.77733,2647.4,2646.9,2.18665959]
[1739191563262,3.77733,2647.4,2646.9,5.96463959]
[1739191563464,3.77733,2647.4,2647.2,2.18665959]
[1739191563808,3.77743,2647.3,2647.2,2.18665959]
[1739191564227,3.77733,2647.4,2647.2,2.18665959]
[1739191564514,7.55474,2647.4,2647.2,2.18665959]
[1739191564818,7.55472,2647.4,2647.2,2.18665959]
[1739191565016,3.77743,2647.3,2647.2,2.18665959]
[1739191565320,3.7776,2647.2,2646.9,2.18665959]
[1739191565616,3.77813,2646.9,2646.6,3.78995028]
[1739191565822,3.77813,2646.9,2646.6,2.18665959]
[1739191566606,4.53667,2647.0,2646.6,2.18665959]
[1739191566808,3.77763,2647.2,2646.9,2.18665959]
[1739191567821,3.77733,2647.4,2646.9,2.18665959]
[1739191568021,3.7588,2647.5,2646.9,2.18665959]
[1739191568221,3.77765,2647.2,2646.9,2.18665959]
[1739191568621,3.77786,2647.0,2646.9,2.18665959]
[1739191571121,3.77765,2647.2,2646.9,2.18665959]
[1739191571325,3.77773,2647.1,2646.9,2.18665959]
[1739191571623,3.77786,2647.0,2646.9,2.18665959]
[1739191573110,3.77786,2647.0,2646.9,2.31085879]
[1739191574787,3.77773,2647.1,2646.9,2.31085879]
[1739191575039,3.7778,2647.1,2646.9,2.31085879]
[1739191575496,3.77786,2647.0,2646.9,2.31085879]
[1739191575684,3.77786,2647.0,2646.9,2.68905879]